[Event "Titled Tuesday Blitz July 20 2021"]
[White "Sukandar, Irine Kharisma"]
[Black "Yuan, Qingyu"]
[WhiteFideId "7101937"]
[BlackFideId "8609772"]
[WhiteElo "2313"]
[BlackElo "2359"]
[Result "0-1"]
[Round "06"]
[TimeControl "180+1"]
[Date "2021.07.21"]
[WhiteClock "0:00:15"]
[BlackClock "0:00:13"]

1. d4 {[%clk 0:03:00]}  Nf6 {[%clk 0:02:59]} 2. Bf4 {[%clk 0:02:59]}  g6 {[%clk 0:02:59]} 3. Nc3 {[%clk 0:02:59]}  d5 {[%clk 0:02:59]} 4. e3 {[%clk 0:02:59]}  Bg7 {[%clk 0:02:58]} 5. h4 {[%clk 0:02:59]}  h5 {[%clk 0:02:58]} 6. Nf3 {[%clk 0:02:59]}  O-O {[%clk 0:02:57]} 7. Nb5 {[%clk 0:02:55]}  Na6 {[%clk 0:02:57]} 8. Ne5 {[%clk 0:02:55]}  c6 {[%clk 0:02:57]} 9. Nc3 {[%clk 0:02:54]}  Nc7 {[%clk 0:02:41]} 10. Qd2 {[%clk 0:02:49]}  c5 {[%clk 0:02:35]} 11. dxc5 {[%clk 0:02:43]}  Ne6 {[%clk 0:02:34]} 12. O-O-O {[%clk 0:02:41]}  Nxf4 {[%clk 0:02:30]} 13. exf4 {[%clk 0:02:41]}  Be6 {[%clk 0:02:29]} 14. f3 {[%clk 0:02:33]}  Rc8 {[%clk 0:02:26]} 15. Qd4 {[%clk 0:02:33]}  Qa5 {[%clk 0:02:11]} 16. Kb1 {[%clk 0:02:02]}  Qxc5 {[%clk 0:01:52]} 17. Qxc5 {[%clk 0:01:55]}  Rxc5 {[%clk 0:01:50]} 18. Nb5 {[%clk 0:01:55]}  a6 {[%clk 0:01:27]} 19. Nd4 {[%clk 0:01:53]}  Bc8 {[%clk 0:01:27]} 20. Bd3 {[%clk 0:01:47]}  Rd8 {[%clk 0:01:18]} 21. Rde1 {[%clk 0:01:45]}  Rc7 {[%clk 0:01:16]} 22. f5 {[%clk 0:01:44]}  gxf5 {[%clk 0:01:15]} 23. Bxf5 {[%clk 0:01:41]}  e6 {[%clk 0:01:11]} 24. Bd3 {[%clk 0:01:40]}  Ne4 {[%clk 0:00:44]} 25. fxe4 {[%clk 0:01:36]}  Bxe5 {[%clk 0:00:43]} 26. Nf3 {[%clk 0:01:36]}  Bg3 {[%clk 0:00:35]} 27. Ref1 {[%clk 0:01:19]}  dxe4 {[%clk 0:00:31]} 28. Bxe4 {[%clk 0:01:18]}  f5 {[%clk 0:00:31]} 29. Bd3 {[%clk 0:01:18]}  e5 {[%clk 0:00:31]} 30. Ng5 {[%clk 0:01:11]}  e4 {[%clk 0:00:28]} 31. Be2 {[%clk 0:01:10]}  Rd2 {[%clk 0:00:24]} 32. Bxh5 {[%clk 0:00:58]}  Rcxc2 {[%clk 0:00:20]} 33. Bf7+ {[%clk 0:00:57]}  Kg7 {[%clk 0:00:20]} 34. Bb3 {[%clk 0:00:49]}  Rxb2+ {[%clk 0:00:19]} 35. Kc1 {[%clk 0:00:49]}  e3 {[%clk 0:00:13]} 36. Nf3 {[%clk 0:00:38]}  Rxg2 {[%clk 0:00:11]} 37. Rfg1 {[%clk 0:00:36]}  f4 {[%clk 0:00:10]} 38. Nd4 {[%clk 0:00:27]}  Rbf2 {[%clk 0:00:08]} 39. Bd5 {[%clk 0:00:26]}  Rxg1+ {[%clk 0:00:07]} 40. Rxg1 {[%clk 0:00:26]}  Kh6 {[%clk 0:00:08]} 41. Bf3 {[%clk 0:00:19]}  Bh3 {[%clk 0:00:08]} 42. Rh1 {[%clk 0:00:18]}  Bg2 {[%clk 0:00:06]} 43. Bxg2 {[%clk 0:00:17]}  Rxg2 {[%clk 0:00:07]} 44. Nf5+ {[%clk 0:00:16]}  Kh5 {[%clk 0:00:07]} 45. Nxg3+ {[%clk 0:00:16]}  Rxg3 {[%clk 0:00:07]} 46. Kc2 {[%clk 0:00:16]}  f3 {[%clk 0:00:07]} 47. Kd3 {[%clk 0:00:16]}  f2 {[%clk 0:00:07]} 48. Rf1 {[%clk 0:00:13]}  Rg1 {[%clk 0:00:07]} 49. Ke2 {[%clk 0:00:14]}  Rxf1 {[%clk 0:00:08]} 50. Kxf1 {[%clk 0:00:14]}  Kxh4 {[%clk 0:00:08]} 51. Kg2 {[%clk 0:00:14]}  Kg4 {[%clk 0:00:09]} 52. a4 {[%clk 0:00:14]}  Kf4 {[%clk 0:00:09]} 53. a5 {[%clk 0:00:15]}  Ke4 {[%clk 0:00:09]} 54. Kf1 {[%clk 0:00:15]}  Kd4 {[%clk 0:00:10]} 55. Ke2 {[%clk 0:00:15]}  Kc4 {[%clk 0:00:11]} 56. Kf1 {[%clk 0:00:14]}  Kb5 {[%clk 0:00:11]} 57. Ke2 {[%clk 0:00:14]}  Kxa5 {[%clk 0:00:12]} 58. Kf1 {[%clk 0:00:15]}  Kb4 {[%clk 0:00:13]} 0-1


[Site "https://www.chess.com"]

[Event "Titled Tuesday Blitz July 20 2021"]
[White "Taichman, Ori"]
[Black "Borsuk, Konstantin"]
[WhiteFideId "2804069"]
[BlackFideId "14113406"]
[WhiteElo "2227"]
[BlackElo "2363"]
[Result "0-1"]
[Round "06"]
[TimeControl "180+1"]
[Date "2021.07.21"]
[WhiteClock "0:00:03"]
[BlackClock "0:00:36"]

1. e4 {[%clk 0:02:56]}  e6 {[%clk 0:02:59]} 2. d4 {[%clk 0:02:56]}  d5 {[%clk 0:03:00]} 3. Nc3 {[%clk 0:02:56]}  Bb4 {[%clk 0:03:01]} 4. e5 {[%clk 0:02:56]}  b6 {[%clk 0:03:00]} 5. Qg4 {[%clk 0:02:53]}  Bf8 {[%clk 0:03:00]} 6. Nh3 {[%clk 0:02:53]}  Ne7 {[%clk 0:02:58]} 7. Nf4 {[%clk 0:02:51]}  Ba6 {[%clk 0:02:51]} 8. Nh5 {[%clk 0:02:50]}  Nf5 {[%clk 0:02:48]} 9. Bg5 {[%clk 0:02:46]}  Qc8 {[%clk 0:02:40]} 10. O-O-O {[%clk 0:02:42]}  Bxf1 {[%clk 0:02:22]} 11. Rhxf1 {[%clk 0:02:40]}  Nc6 {[%clk 0:02:20]} 12. Ne2 {[%clk 0:02:22]}  Qa6 {[%clk 0:02:19]} 13. Kb1 {[%clk 0:02:14]}  Nb4 {[%clk 0:02:16]} 14. a3 {[%clk 0:01:53]}  Nc6 {[%clk 0:02:16]} 15. Qf3 {[%clk 0:01:51]}  b5 {[%clk 0:02:06]} 16. g4 {[%clk 0:01:51]}  Nfe7 {[%clk 0:02:05]} 17. Bxe7 {[%clk 0:01:32]}  Nxe7 {[%clk 0:01:53]} 18. Nc1 {[%clk 0:01:29]}  b4 {[%clk 0:01:50]} 19. axb4 {[%clk 0:01:23]}  Nc6 {[%clk 0:01:47]} 20. Nd3 {[%clk 0:01:09]}  Qb5 {[%clk 0:01:44]} 21. Nc5 {[%clk 0:00:50]}  a5 {[%clk 0:01:34]} 22. Qd3 {[%clk 0:00:32]}  Qb6 {[%clk 0:01:23]} 23. b5 {[%clk 0:00:23]}  Nb4 {[%clk 0:01:21]} 24. Qe2 {[%clk 0:00:22]}  Bxc5 {[%clk 0:01:13]} 25. dxc5 {[%clk 0:00:22]}  Qxc5 {[%clk 0:01:13]} 26. Nxg7+ {[%clk 0:00:22]}  Kf8 {[%clk 0:01:13]} 27. Nh5 {[%clk 0:00:21]}  d4 {[%clk 0:01:00]} 28. Nf6 {[%clk 0:00:20]}  Ke7 {[%clk 0:00:55]} 29. Qe4 {[%clk 0:00:12]}  Qxb5 {[%clk 0:00:45]} 30. Qxd4 {[%clk 0:00:07]}  Rhd8 {[%clk 0:00:41]} 31. Qc3 {[%clk 0:00:05]}  c5 {[%clk 0:00:37]} 32. Rxd8 {[%clk 0:00:03]}  Qxf1+ {[%clk 0:00:36]} 0-1


[Site "https://www.chess.com"]

[Event "Titled Tuesday Blitz July 20 2021"]
[White "Timmermans, Mark"]
[Black "Omk124"]
[WhiteFideId "1026399"]
[WhiteElo "2460"]
[BlackElo "2565"]
[Result "1-0"]
[Round "06"]
[TimeControl "180+1"]
[Date "2021.07.21"]
[WhiteClock "0:01:43"]
[BlackClock "0:00:20"]

1. b4 {[%clk 0:03:00]}  e5 {[%clk 0:02:57]} 2. Bb2 {[%clk 0:02:59]}  Bxb4 {[%clk 0:02:56]} 3. Bxe5 {[%clk 0:02:59]}  Nf6 {[%clk 0:02:56]} 4. Nc3 {[%clk 0:02:59]}  O-O {[%clk 0:02:56]} 5. Bxf6 {[%clk 0:02:59]}  Qxf6 {[%clk 0:02:55]} 6. Nd5 {[%clk 0:03:00]}  Qd6 {[%clk 0:02:54]} 7. c4 {[%clk 0:03:00]}  c6 {[%clk 0:02:52]} 8. Nxb4 {[%clk 0:03:00]}  Qxb4 {[%clk 0:02:53]} 9. e3 {[%clk 0:03:01]}  d5 {[%clk 0:02:51]} 10. cxd5 {[%clk 0:03:02]}  cxd5 {[%clk 0:02:52]} 11. Nf3 {[%clk 0:03:01]}  Nc6 {[%clk 0:02:52]} 12. Bd3 {[%clk 0:02:59]}  Bg4 {[%clk 0:02:51]} 13. Rb1 {[%clk 0:02:55]}  Qe7 {[%clk 0:02:50]} 14. O-O {[%clk 0:02:45]}  Qf6 {[%clk 0:02:42]} 15. Rxb7 {[%clk 0:02:37]}  Rab8 {[%clk 0:02:33]} 16. Rxb8 {[%clk 0:02:34]}  Rxb8 {[%clk 0:02:34]} 17. Be2 {[%clk 0:02:30]}  d4 {[%clk 0:02:31]} 18. Nxd4 {[%clk 0:02:28]}  Bd7 {[%clk 0:02:19]} 19. Nxc6 {[%clk 0:02:24]}  Bxc6 {[%clk 0:02:20]} 20. Bf3 {[%clk 0:01:59]}  Bxf3 {[%clk 0:01:31]} 21. Qxf3 {[%clk 0:02:00]}  Qxf3 {[%clk 0:01:32]} 22. gxf3 {[%clk 0:02:01]}  Rb2 {[%clk 0:01:32]} 23. Rc1 {[%clk 0:02:01]}  g6 {[%clk 0:01:31]} 24. a4 {[%clk 0:02:01]}  Rxd2 {[%clk 0:01:18]} 25. Rc7 {[%clk 0:02:01]}  h5 {[%clk 0:01:17]} 26. Rxa7 {[%clk 0:02:00]}  h4 {[%clk 0:01:17]} 27. Kg2 {[%clk 0:02:00]}  Ra2 {[%clk 0:01:15]} 28. a5 {[%clk 0:01:54]}  Kg7 {[%clk 0:01:13]} 29. a6 {[%clk 0:01:54]}  g5 {[%clk 0:01:11]} 30. Ra8 {[%clk 0:01:53]}  f5 {[%clk 0:01:10]} 31. a7 {[%clk 0:01:52]}  g4 {[%clk 0:01:07]} 32. fxg4 {[%clk 0:01:52]}  fxg4 {[%clk 0:01:08]} 33. e4 {[%clk 0:01:50]}  Ra3 {[%clk 0:01:04]} 34. e5 {[%clk 0:01:46]}  h3+ {[%clk 0:00:18]} 35. Kf1 {[%clk 0:01:44]}  Ra1+ {[%clk 0:00:19]} 36. Ke2 {[%clk 0:01:44]}  Ra2+ {[%clk 0:00:20]} 37. Ke3 {[%clk 0:01:44]}  g3 {[%clk 0:00:20]} 38. fxg3 {[%clk 0:01:43]} 1-0


[Site "https://www.chess.com"]

[Event "Titled Tuesday Blitz July 20 2021"]
[White "Timofeev, Artyom"]
[Black "Gelman, Alexander"]
[WhiteFideId "4140419"]
[BlackFideId "4118316"]
[WhiteElo "2582"]
[BlackElo "2375"]
[Result "1-0"]
[Round "06"]
[TimeControl "180+1"]
[Date "2021.07.20"]
[WhiteClock "0:00:11"]
[BlackClock "0:00:03"]

1. c4 {[%clk 0:03:00]}  c5 {[%clk 0:02:59]} 2. Nf3 {[%clk 0:02:59]}  Nf6 {[%clk 0:02:59]} 3. Nc3 {[%clk 0:02:58]}  d6 {[%clk 0:02:59]} 4. g3 {[%clk 0:02:57]}  e6 {[%clk 0:03:00]} 5. Bg2 {[%clk 0:02:57]}  a6 {[%clk 0:03:00]} 6. O-O {[%clk 0:02:57]}  Be7 {[%clk 0:03:01]} 7. b3 {[%clk 0:02:56]}  O-O {[%clk 0:03:01]} 8. Bb2 {[%clk 0:02:57]}  Nbd7 {[%clk 0:02:58]} 9. e3 {[%clk 0:02:56]}  Qc7 {[%clk 0:02:57]} 10. d4 {[%clk 0:02:56]}  Rb8 {[%clk 0:02:57]} 11. Rc1 {[%clk 0:02:55]}  b6 {[%clk 0:02:56]} 12. d5 {[%clk 0:02:52]}  exd5 {[%clk 0:02:56]} 13. cxd5 {[%clk 0:02:51]}  Re8 {[%clk 0:02:48]} 14. e4 {[%clk 0:02:50]}  Bf8 {[%clk 0:02:48]} 15. Nd2 {[%clk 0:02:48]}  b5 {[%clk 0:02:47]} 16. h3 {[%clk 0:02:45]}  g6 {[%clk 0:02:42]} 17. f4 {[%clk 0:02:38]}  Bg7 {[%clk 0:02:43]} 18. Qc2 {[%clk 0:02:33]}  Nb6 {[%clk 0:02:01]} 19. Kh2 {[%clk 0:02:29]}  Bb7 {[%clk 0:02:01]} 20. Rce1 {[%clk 0:02:25]}  b4 {[%clk 0:01:52]} 21. Nd1 {[%clk 0:02:22]}  a5 {[%clk 0:01:42]} 22. Ne3 {[%clk 0:02:22]}  Ba6 {[%clk 0:01:42]} 23. Rg1 {[%clk 0:02:12]}  Rbd8 {[%clk 0:01:40]} 24. e5 {[%clk 0:01:57]}  dxe5 {[%clk 0:01:36]} 25. Bxe5 {[%clk 0:01:57]}  Rxe5 {[%clk 0:01:12]} 26. fxe5 {[%clk 0:01:57]}  Nfxd5 {[%clk 0:00:55]} 27. Nxd5 {[%clk 0:01:49]}  Nxd5 {[%clk 0:00:56]} 28. e6 {[%clk 0:01:50]}  fxe6 {[%clk 0:00:53]} 29. Rxe6 {[%clk 0:01:43]}  Bc8 {[%clk 0:00:52]} 30. Bxd5 {[%clk 0:01:33]}  Rxd5 {[%clk 0:00:47]} 31. Re8+ {[%clk 0:01:33]}  Kf7 {[%clk 0:00:46]} 32. Qc4 {[%clk 0:01:17]}  Kxe8 {[%clk 0:00:35]} 33. Qxd5 {[%clk 0:01:18]}  Qe7 {[%clk 0:00:15]} 34. Ne4 {[%clk 0:01:10]}  Be6 {[%clk 0:00:12]} 35. Qa8+ {[%clk 0:01:02]}  Qd8 {[%clk 0:00:11]} 36. Qxd8+ {[%clk 0:01:02]}  Kxd8 {[%clk 0:00:11]} 37. Nxc5 {[%clk 0:01:02]}  Bf5 {[%clk 0:00:11]} 38. Nb7+ {[%clk 0:01:00]}  Kc7 {[%clk 0:00:12]} 39. Nxa5 {[%clk 0:01:01]}  Kb6 {[%clk 0:00:11]} 40. Nc4+ {[%clk 0:01:00]}  Kc5 {[%clk 0:00:12]} 41. Rd1 {[%clk 0:01:00]}  Bc2 {[%clk 0:00:10]} 42. Rd2 {[%clk 0:01:00]}  Bb1 {[%clk 0:00:11]} 43. a4 {[%clk 0:00:48]}  Bc3 {[%clk 0:00:09]} 44. Rf2 {[%clk 0:00:39]}  Bd3 {[%clk 0:00:08]} 45. Ne3 {[%clk 0:00:28]}  Bd4 {[%clk 0:00:08]} 46. Rd2 {[%clk 0:00:28]}  Be4 {[%clk 0:00:07]} 47. Nd1 {[%clk 0:00:19]}  Bc3 {[%clk 0:00:08]} 48. Re2 {[%clk 0:00:12]}  Bd3 {[%clk 0:00:07]} 49. Re8 {[%clk 0:00:11]}  Bf6 {[%clk 0:00:05]} 50. Rc8+ {[%clk 0:00:10]}  Kd4 {[%clk 0:00:05]} 51. a5 {[%clk 0:00:10]}  Be2 {[%clk 0:00:04]} 52. Nf2 {[%clk 0:00:10]}  Ke3 {[%clk 0:00:04]} 53. Ng4+ {[%clk 0:00:10]}  Bxg4 {[%clk 0:00:03]} 54. hxg4 {[%clk 0:00:11]}  Kd3 {[%clk 0:00:03]} 55. a6 {[%clk 0:00:11]} 1-0


[Site "https://www.chess.com"]

[Event "Titled Tuesday Blitz July 20 2021"]
[White "Tin, Jingyao"]
[Black "Moskalenko, Alexander"]
[WhiteFideId "5804418"]
[BlackFideId "4155351"]
[WhiteElo "2374"]
[BlackElo "2495"]
[Result "1-0"]
[Round "06"]
[TimeControl "180+1"]
[Date "2021.07.20"]
[WhiteClock "0:00:12"]
[BlackClock "0:01:32"]

1. d4 {[%clk 0:03:00]}  d5 {[%clk 0:02:59]} 2. c4 {[%clk 0:03:01]}  c6 {[%clk 0:03:00]} 3. Nf3 {[%clk 0:03:01]}  Nf6 {[%clk 0:03:00]} 4. e3 {[%clk 0:03:02]}  Bf5 {[%clk 0:03:00]} 5. Nc3 {[%clk 0:03:01]}  e6 {[%clk 0:03:00]} 6. Nh4 {[%clk 0:03:02]}  Be4 {[%clk 0:02:59]} 7. f3 {[%clk 0:03:02]}  Bg6 {[%clk 0:02:59]} 8. g3 {[%clk 0:03:03]}  Nbd7 {[%clk 0:02:58]} 9. Bd2 {[%clk 0:03:02]}  Be7 {[%clk 0:02:58]} 10. Qb3 {[%clk 0:02:59]}  Qc8 {[%clk 0:02:57]} 11. Be2 {[%clk 0:02:53]}  a6 {[%clk 0:02:56]} 12. Nxg6 {[%clk 0:02:47]}  hxg6 {[%clk 0:02:56]} 13. cxd5 {[%clk 0:02:47]}  exd5 {[%clk 0:02:54]} 14. O-O-O {[%clk 0:02:41]}  a5 {[%clk 0:02:49]} 15. Kb1 {[%clk 0:02:40]}  Qc7 {[%clk 0:02:47]} 16. Rc1 {[%clk 0:02:39]}  Qb6 {[%clk 0:02:47]} 17. Qxb6 {[%clk 0:02:34]}  Nxb6 {[%clk 0:02:48]} 18. e4 {[%clk 0:02:33]}  Nc4 {[%clk 0:02:45]} 19. Bg5 {[%clk 0:02:12]}  Rh5 {[%clk 0:02:23]} 20. f4 {[%clk 0:01:57]}  Rxg5 {[%clk 0:02:23]} 21. fxg5 {[%clk 0:01:58]}  Nd2+ {[%clk 0:02:23]} 22. Kc2 {[%clk 0:01:56]}  Nfxe4 {[%clk 0:02:24]} 23. h4 {[%clk 0:01:46]}  Nxc3 {[%clk 0:02:18]} 24. bxc3 {[%clk 0:01:40]}  Ne4 {[%clk 0:02:19]} 25. g4 {[%clk 0:01:07]}  Kd7 {[%clk 0:02:19]} 26. Bd3 {[%clk 0:01:02]}  Nd6 {[%clk 0:02:12]} 27. Rcf1 {[%clk 0:00:49]}  Rh8 {[%clk 0:02:11]} 28. Kd1 {[%clk 0:00:24]}  b5 {[%clk 0:02:11]} 29. Kc2 {[%clk 0:00:24]}  Bd8 {[%clk 0:02:05]} 30. Kd1 {[%clk 0:00:24]}  Bb6 {[%clk 0:02:05]} 31. h5 {[%clk 0:00:23]}  Bd8 {[%clk 0:01:49]} 32. hxg6 {[%clk 0:00:23]}  Rxh1 {[%clk 0:01:50]} 33. Rxh1 {[%clk 0:00:23]}  fxg6 {[%clk 0:01:51]} 34. Rh7 {[%clk 0:00:21]}  Bxg5 {[%clk 0:01:40]} 35. Rxg7+ {[%clk 0:00:21]}  Be7 {[%clk 0:01:41]} 36. Bxg6 {[%clk 0:00:20]}  Ke6 {[%clk 0:01:41]} 37. Bf5+ {[%clk 0:00:18]}  Kf6 {[%clk 0:01:38]} 38. Rg6+ {[%clk 0:00:19]}  Kf7 {[%clk 0:01:38]} 39. Rh6 {[%clk 0:00:19]}  b4 {[%clk 0:01:35]} 40. Kc2 {[%clk 0:00:17]}  bxc3 {[%clk 0:01:33]} 41. Kxc3 {[%clk 0:00:18]}  Nb5+ {[%clk 0:01:32]} 42. Kd3 {[%clk 0:00:19]}  Bf6 {[%clk 0:01:33]} 43. Bd7 {[%clk 0:00:12]}  Nxd4 {[%clk 0:01:32]} 44. Rxf6+ {[%clk 0:00:12]} 1-0


[Site "https://www.chess.com"]

[Event "Titled Tuesday Blitz July 20 2021"]
[White "Tologon tegin, Semetei"]
[Black "Bach, Ngoc Thuy Duong"]
[WhiteFideId "13800574"]
[BlackFideId "12408956"]
[WhiteElo "2224"]
[BlackElo "1896"]
[Result "0-1"]
[Round "06"]
[TimeControl "180+1"]
[Date "2021.07.21"]
[WhiteClock "0:00:03"]
[BlackClock "0:00:47"]

1. d4 {[%clk 0:03:00]}  d5 {[%clk 0:02:59]} 2. c4 {[%clk 0:03:01]}  e6 {[%clk 0:02:58]} 3. Nc3 {[%clk 0:03:01]}  c6 {[%clk 0:02:58]} 4. Bf4 {[%clk 0:02:57]}  Nf6 {[%clk 0:02:53]} 5. e3 {[%clk 0:02:56]}  Bd6 {[%clk 0:02:50]} 6. Bg3 {[%clk 0:02:56]}  O-O {[%clk 0:02:48]} 7. Nf3 {[%clk 0:02:53]}  dxc4 {[%clk 0:02:46]} 8. Bxc4 {[%clk 0:02:53]}  b5 {[%clk 0:02:47]} 9. Bd3 {[%clk 0:02:52]}  Bb7 {[%clk 0:02:45]} 10. Qc2 {[%clk 0:02:44]}  h6 {[%clk 0:02:24]} 11. Rd1 {[%clk 0:02:17]}  a6 {[%clk 0:02:21]} 12. Bh4 {[%clk 0:02:11]}  Be7 {[%clk 0:02:21]} 13. a3 {[%clk 0:02:04]}  Nbd7 {[%clk 0:02:19]} 14. O-O {[%clk 0:01:59]}  Qb6 {[%clk 0:02:15]} 15. e4 {[%clk 0:01:58]}  Rfe8 {[%clk 0:02:12]} 16. Rfe1 {[%clk 0:01:46]}  c5 {[%clk 0:02:05]} 17. d5 {[%clk 0:01:45]}  e5 {[%clk 0:01:52]} 18. Bg3 {[%clk 0:01:35]}  c4 {[%clk 0:01:45]} 19. Be2 {[%clk 0:01:29]}  Bd6 {[%clk 0:01:39]} 20. Nh4 {[%clk 0:01:29]}  g6 {[%clk 0:01:38]} 21. Kh1 {[%clk 0:00:54]}  Kg7 {[%clk 0:01:16]} 22. Rf1 {[%clk 0:00:54]}  Nc5 {[%clk 0:01:08]} 23. f4 {[%clk 0:00:27]}  exf4 {[%clk 0:01:06]} 24. Bxf4 {[%clk 0:00:27]}  Ncxe4 {[%clk 0:01:05]} 25. Nxe4 {[%clk 0:00:26]}  Nxe4 {[%clk 0:01:05]} 26. Rf3 {[%clk 0:00:08]}  Bxf4 {[%clk 0:01:00]} 27. Rxf4 {[%clk 0:00:08]}  Nf2+ {[%clk 0:00:58]} 28. Rxf2 {[%clk 0:00:08]}  Qxf2 {[%clk 0:00:58]} 29. Qc3+ {[%clk 0:00:03]}  Kg8 {[%clk 0:00:47]} 0-1


[Site "https://www.chess.com"]

[Event "Titled Tuesday Blitz July 20 2021"]
[White "Trent, Lawrence"]
[Black "Dardha, Daniel"]
[WhiteFideId "408638"]
[BlackFideId "240990"]
[WhiteElo "2474"]
[BlackElo "2489"]
[Result "1-0"]
[Round "06"]
[TimeControl "180+1"]
[Date "2021.07.20"]
[WhiteClock "0:00:20"]
[BlackClock "0:00:23"]

1. e4 {[%clk 0:03:00]}  e5 {[%clk 0:02:58]} 2. Nf3 {[%clk 0:02:59]}  Nf6 {[%clk 0:02:57]} 3. d3 {[%clk 0:02:57]}  Nc6 {[%clk 0:02:55]} 4. Nbd2 {[%clk 0:02:57]}  d5 {[%clk 0:02:54]} 5. Be2 {[%clk 0:02:57]}  a5 {[%clk 0:02:52]} 6. a4 {[%clk 0:02:51]}  Bc5 {[%clk 0:02:52]} 7. c3 {[%clk 0:02:51]}  O-O {[%clk 0:02:51]} 8. Qc2 {[%clk 0:02:49]}  Re8 {[%clk 0:02:51]} 9. h3 {[%clk 0:02:48]}  h6 {[%clk 0:02:52]} 10. Nf1 {[%clk 0:02:48]}  Be6 {[%clk 0:02:39]} 11. g4 {[%clk 0:02:47]}  dxe4 {[%clk 0:02:38]} 12. dxe4 {[%clk 0:02:47]}  Nh7 {[%clk 0:02:32]} 13. Ng3 {[%clk 0:02:46]}  Qd7 {[%clk 0:02:20]} 14. Nf5 {[%clk 0:02:33]}  f6 {[%clk 0:02:20]} 15. h4 {[%clk 0:02:14]}  Qf7 {[%clk 0:02:20]} 16. g5 {[%clk 0:02:08]}  fxg5 {[%clk 0:02:17]} 17. hxg5 {[%clk 0:02:08]}  Bxf5 {[%clk 0:02:00]} 18. exf5 {[%clk 0:02:06]}  e4 {[%clk 0:02:00]} 19. g6 {[%clk 0:01:57]}  Qxf5 {[%clk 0:02:00]} 20. gxh7+ {[%clk 0:01:57]}  Kxh7 {[%clk 0:01:45]} 21. Be3 {[%clk 0:01:43]}  Bxe3 {[%clk 0:01:36]} 22. fxe3 {[%clk 0:01:37]}  Rf8 {[%clk 0:01:37]} 23. O-O-O {[%clk 0:01:29]}  Kh8 {[%clk 0:01:25]} 24. Nh4 {[%clk 0:01:15]}  Qe6 {[%clk 0:01:20]} 25. Rdg1 {[%clk 0:01:05]}  Rf2 {[%clk 0:01:16]} 26. Ng6+ {[%clk 0:00:50]}  Kg8 {[%clk 0:01:12]} 27. Kb1 {[%clk 0:00:39]}  Qf5 {[%clk 0:00:45]} 28. Rh5 {[%clk 0:00:32]}  Qf6 {[%clk 0:00:40]} 29. Nf4 {[%clk 0:00:27]}  Re8 {[%clk 0:00:31]} 30. Bc4+ {[%clk 0:00:26]}  Kh7 {[%clk 0:00:27]} 31. Qxf2 {[%clk 0:00:26]}  Ne5 {[%clk 0:00:28]} 32. Be2 {[%clk 0:00:22]}  Rd8 {[%clk 0:00:28]} 33. Qg2 {[%clk 0:00:22]}  Rd2 {[%clk 0:00:27]} 34. Qxe4+ {[%clk 0:00:22]}  g6 {[%clk 0:00:24]} 35. Qxe5 {[%clk 0:00:21]}  Qb6 {[%clk 0:00:23]} 36. Qe7+ {[%clk 0:00:20]}  Kh8 {[%clk 0:00:23]} 37. Rxh6+ {[%clk 0:00:20]}  Kg8 {[%clk 0:00:23]} 38. Bc4+ {[%clk 0:00:20]} 1-0


[Site "https://www.chess.com"]

[Event "Titled Tuesday Blitz July 20 2021"]
[White "Triapishko, Alexandr"]
[Black "Bakalchuk, Johnatan"]
[WhiteFideId "14122286"]
[BlackFideId "2810301"]
[WhiteElo "2490"]
[BlackElo "2507"]
[Result "0-1"]
[Round "06"]
[TimeControl "180+1"]
[Date "2021.07.20"]
[WhiteClock "0:00:02"]
[BlackClock "0:00:38"]

1. e4 {[%clk 0:02:47]}  c5 {[%clk 0:03:00]} 2. Nf3 {[%clk 0:02:47]}  g6 {[%clk 0:03:00]} 3. c3 {[%clk 0:02:36]}  d5 {[%clk 0:03:00]} 4. exd5 {[%clk 0:02:34]}  Qxd5 {[%clk 0:03:01]} 5. d4 {[%clk 0:02:35]}  Bg7 {[%clk 0:03:01]} 6. Be3 {[%clk 0:02:34]}  Nf6 {[%clk 0:03:00]} 7. c4 {[%clk 0:02:28]}  Qd8 {[%clk 0:02:45]} 8. h3 {[%clk 0:02:25]}  cxd4 {[%clk 0:02:44]} 9. Qxd4 {[%clk 0:02:21]}  O-O {[%clk 0:02:42]} 10. Nc3 {[%clk 0:02:13]}  Qa5 {[%clk 0:02:25]} 11. Qc5 {[%clk 0:01:59]}  Nc6 {[%clk 0:02:22]} 12. Qxa5 {[%clk 0:01:54]}  Nxa5 {[%clk 0:02:23]} 13. O-O-O {[%clk 0:01:51]}  Be6 {[%clk 0:02:10]} 14. b3 {[%clk 0:01:50]}  Ng4 {[%clk 0:02:10]} 15. hxg4 {[%clk 0:01:46]}  Bxc3 {[%clk 0:02:10]} 16. Ng5 {[%clk 0:01:26]}  Bxg4 {[%clk 0:02:04]} 17. f3 {[%clk 0:01:26]}  Bf5 {[%clk 0:02:01]} 18. g4 {[%clk 0:01:25]}  Be6 {[%clk 0:02:02]} 19. Rxh7 {[%clk 0:01:09]}  b5 {[%clk 0:01:17]} 20. c5 {[%clk 0:00:51]}  Nxb3+ {[%clk 0:01:09]} 21. axb3 {[%clk 0:00:34]}  Bxb3 {[%clk 0:01:10]} 22. Rd3 {[%clk 0:00:33]}  b4 {[%clk 0:01:11]} 23. Rh1 {[%clk 0:00:15]}  Rfd8 {[%clk 0:01:08]} 24. Ne4 {[%clk 0:00:09]}  Rxd3 {[%clk 0:01:01]} 25. Bxd3 {[%clk 0:00:10]}  Bg7 {[%clk 0:00:58]} 26. Nd2 {[%clk 0:00:06]}  Bd5 {[%clk 0:00:56]} 27. Be4 {[%clk 0:00:05]}  e6 {[%clk 0:00:54]} 28. Bxd5 {[%clk 0:00:06]}  exd5 {[%clk 0:00:55]} 29. Nb3 {[%clk 0:00:07]}  a5 {[%clk 0:00:55]} 30. Bd4 {[%clk 0:00:06]}  a4 {[%clk 0:00:53]} 31. Bxg7 {[%clk 0:00:06]}  Kxg7 {[%clk 0:00:54]} 32. Nd4 {[%clk 0:00:06]}  Kf6 {[%clk 0:00:50]} 33. f4 {[%clk 0:00:04]}  Ra5 {[%clk 0:00:40]} 34. g5+ {[%clk 0:00:02]}  Kg7 {[%clk 0:00:39]} 35. c6 {[%clk 0:00:03]}  Rc5+ {[%clk 0:00:40]} 36. Kb2 {[%clk 0:00:02]}  Rc4 {[%clk 0:00:40]} 37. Rc1 {[%clk 0:00:01]}  a3+ {[%clk 0:00:39]} 38. Kb1 {[%clk 0:00:01]}  a2+ {[%clk 0:00:39]} 39. Kxa2 {[%clk 0:00:02]}  Rxc1 {[%clk 0:00:39]} 40. Kb3 {[%clk 0:00:02]}  Rc4 {[%clk 0:00:38]} 0-1


[Site "https://www.chess.com"]